fUSD/lending_fUSD_20260404
["ID","MTS","AMOUNT","RATE_DAILY","PERIOD"]
[419710209,1775331040991,-672.0,0.00014188,2]
[419710211,1775331041001,-4387.0,0.00014188,2]
[419710212,1775331041011,-672.0,0.00014188,2]
[419710213,1775331041020,-672.0,0.00014188,2]
[419710214,1775331041032,-4387.0,0.00014188,2]
[419710215,1775331041043,-672.0,0.00014188,2]
[419710216,1775331041054,-4387.0,0.00014188,2]
[419710217,1775331041063,-672.0,0.00014188,2]
[419710218,1775331041073,-4387.0,0.00014188,2]
[419710219,1775331041084,-672.0,0.00014188,2]
[419710220,1775331041094,-4387.0,0.00014188,2]
[419710221,1775331041103,-672.0,0.00014188,2]
[419710222,1775331041114,-4387.0,0.00014188,2]
[419710223,1775331041123,-672.0,0.00014188,2]
[419710224,1775331041133,-4387.0,0.00014188,2]
[419710225,1775331041143,-672.0,0.00014188,2]
[419710226,1775331041152,-4387.0,0.00014188,2]
[419710227,1775331041162,-692.53940565,0.00014188,2]
[419710228,1775331041172,-4387.0,0.00014188,2]
[419710229,1775331041182,-4399.29355466,0.00014188,2]
[419710230,1775331041192,-17026.57235128,0.00014199,2]
[419710231,1775331041201,-250.0,0.00014217,2]
[419710232,1775331041210,-500.0,0.00014247,2]
[419710233,1775331041220,-500.67291823,0.00014247,2]
[419710234,1775331041230,-500.92096855,0.00014247,2]
[419710235,1775331041240,-1000.0,0.00014247,2]
[419710236,1775331041250,-500.0,0.00014247,2]
[419710237,1775331041260,-1000.0,0.00014247,2]
[419710238,1775331041270,-491.54112601,0.0001433,2]
[419710239,1775331041279,-1602.77615534,0.00014371,2]
[419710240,1775331041289,-3474.47,0.00014384,2]
[419710241,1775331041299,-500.0,0.00014398,2]
[419710242,1775331041309,-150.0,0.000144,2]
[419710243,1775331041318,-150.0,0.000144,2]
[419710244,1775331041328,-150.0,0.000144,2]
[419710245,1775331041339,-150.0,0.000144,2]
[419710246,1775331041348,-150.0,0.000144,2]
[419710247,1775331041358,-150.0,0.000144,2]
[419710248,1775331041368,-150.0,0.000144,2]
[419710249,1775331041378,-256.52934676,0.000144,2]
[419710250,1775331041387,-150.0,0.000144,2]
[419710251,1775331041396,-150.0,0.000144,2]
[419710252,1775331041406,-150.0,0.000144,2]
[419710253,1775331041416,-150.0,0.000144,2]
[419710254,1775331041433,-2000.0,0.00014416,2]
[419710255,1775331041443,-1061.25077082,0.00014416,2]
[419710256,1775331041453,-2000.0,0.00014416,2]
[419710257,1775331041464,-298.88224457,0.00014416,2]
[419710258,1775331041474,-10523.99379801,0.00014421,2]
[419710259,1775331041484,-433.0,0.00014431,2]
[419710260,1775331041494,-150.0,0.00014436,2]
[419710261,1775331041504,-150.0,0.00014446,2]
[419710262,1775331041515,-150.0,0.00014447,2]
[419710263,1775331041524,-150.0,0.00014447,2]
[419710264,1775331041534,-1097.01949969,0.00014448,2]
[419710265,1775331041543,-150.0,0.00014464,2]
[419710266,1775331041555,-166.66,0.00014465,2]
[419710267,1775331041564,-150.0,0.00014467,2]
[419710268,1775331041574,-587.0,0.0001447,2]
[419710269,1775331041585,-150.0,0.00014473,2]
[419710270,1775331041595,-826.02015785,0.00014473,2]
[419710271,1775331041605,-947.27023195,0.00014473,2]
[419710272,1775331041617,-3091.81003326,0.00014474,2]
[419710273,1775331041628,-602.10958763,0.00014486,2]
[419710274,1775331041639,-502.03101859,0.00014486,2]
[419710275,1775331041649,-150.0,0.00014491,2]
[419710276,1775331041659,-150.0,0.00014494,2]
[419710277,1775331041669,-150.0,0.00014494,2]
[419710278,1775331041679,-500.0,0.00014499,2]
[419710279,1775331041689,-500.96174367,0.00014505,2]
[419710280,1775331041700,-1000.0,0.00014505,2]
[419710281,1775331041710,-1000.0,0.00014505,2]
[419710282,1775331042035,-1000.0,0.00014505,2]
[419710283,1775331042045,-501.88837508,0.00014505,2]
[419710284,1775331042055,-1000.0,0.00014505,2]
[419710285,1775331042064,-184.40015724,0.00014505,2]
[419710286,1775331042074,-1000.0,0.00014505,2]
[419710287,1775331042083,-1002.19050137,0.00014505,2]
[419710288,1775331042091,-1000.0,0.00014505,2]
[419710289,1775331042100,-502.01968107,0.00014505,2]
[419710290,1775331042109,-1000.0,0.00014505,2]
[419710291,1775331042118,-1000.0,0.00014505,2]
[419710292,1775331042128,-150.0,0.00014509,2]
[419710293,1775331042137,-1000.0,0.00014523,2]
[419710294,1775331042146,-501.1834914,0.00014523,2]
[419710295,1775331042155,-419.81066253,0.00014523,2]
[419710296,1775331042167,-1000.0,0.00014523,2]
[419710297,1775331042176,-1000.0,0.00014523,2]
[419710298,1775331042185,-150.0,0.00014523,2]
[419710299,1775331042194,-150.0,0.00014528,2]
[419710300,1775331042204,-2351.0,0.00014528,2]
[419710301,1775331042213,-150.0,0.00014533,2]
[419710302,1775331042222,-150.0,0.00014533,2]
[419710303,1775331042231,-150.0,0.00014537,2]
[419710304,1775331042240,-150.0,0.00014541,2]
[419710305,1775331042250,-150.0,0.00014541,2]
[419710306,1775331042259,-150.0,0.00014545,2]
[419710307,1775331042268,-1115.0,0.00014568,2]
[419710308,1775331042277,-150.0,0.00014582,2]
[419710309,1775331042286,-150.0,0.00014583,2]
[419710310,1775331042295,-150.0,0.00014588,2]
[419710311,1775331042304,-150.0,0.00014588,2]
[419710312,1775331042314,-150.0,0.00014592,2]
[419710313,1775331042323,-150.0,0.000146,2]
[419710314,1775331042332,-500.0,0.00014616,2]
[419710315,1775331042342,-150.0,0.00014618,2]
[419710316,1775331042351,-17026.57235128,0.00014624,2]
[419710317,1775331042360,-150.0,0.00014629,2]
[419710318,1775331042369,-150.0,0.00014635,2]
[419710319,1775331042378,-150.0,0.00014635,2]
[419710320,1775331042387,-150.0,0.00014646,2]
[419710321,1775331042397,-150.0,0.00014655,2]
[419710322,1775331042406,-150.0,0.00014656,2]
[419710323,1775331042415,-150.0,0.00014667,2]
[419710324,1775331042424,-150.0,0.00014667,2]
[419710325,1775331042434,-150.0,0.00014667,2]
[419710326,1775331042443,-150.0,0.00014674,2]
[419710327,1775331042452,-150.0,0.00014682,2]
[419710328,1775331042462,-150.0,0.00014682,2]
[419710329,1775331042471,-150.0,0.00014691,2]
[419710330,1775331042481,-2000.0,0.0001471,2]
[419710331,1775331042490,-2000.0,0.0001471,2]
[419710332,1775331042499,-2000.0,0.0001471,2]
[419710333,1775331042509,-2000.0,0.0001471,2]
[419710334,1775331042518,-2000.0,0.0001471,2]
[419710335,1775331042527,-2000.0,0.0001471,2]
[419710336,1775331042537,-2000.0,0.0001471,2]
[419710337,1775331042546,-2000.0,0.0001471,2]
[419710338,1775331042555,-2000.0,0.0001471,2]
[419710339,1775331042565,-1826.0,0.0001471,2]
[419710340,1775331042574,-150.0,0.0001472,2]
[419710341,1775331042584,-150.0,0.0001472,2]
[419710342,1775331042594,-710.53546823,0.00014721,2]
[419710343,1775331042603,-150.0,0.00014727,2]
[419710344,1775331042613,-150.0,0.00014729,2]
[419710345,1775331042622,-150.0,0.00014729,2]
[419710346,1775331042632,-150.0,0.00014733,2]
[419710347,1775331042641,-384.49,0.00014752,2]
[419710348,1775331042650,-150.0,0.00014764,2]
[419710349,1775331042660,-150.0,0.00014766,2]
[419710350,1775331042669,-150.0,0.00014769,2]
[419710351,1775331042678,-150.0,0.00014776,2]
[419710352,1775331042688,-150.0,0.00014776,2]
[419710353,1775331042697,-150.0,0.00014784,2]
[419710354,1775331042707,-1450.0,0.00014785,2]
[419710355,1775331042716,-1450.0,0.00014785,2]
[419710356,1775331042725,-1450.0,0.00014785,2]
[419710357,1775331042735,-1450.0,0.00014785,2]
[419710358,1775331042744,-1450.0,0.00014785,2]
[419710359,1775331042754,-1450.0,0.00014785,2]
[419710360,1775331042763,-1450.0,0.00014785,2]
[419710361,1775331042772,-1450.0,0.00014785,2]
[419710362,1775331042782,-1450.0,0.00014785,2]
[419710363,1775331042791,-1107.0,0.00014785,2]
[419710364,1775331042801,-10523.99379801,0.00014791,2]
[419710365,1775331042810,-831.51791405,0.00014795,2]
[419710366,1775331042820,-150.0,0.000148,2]
[419710367,1775331042830,-150.0,0.000148,2]
[419710368,1775331042840,-150.0,0.000148,2]
[419710369,1775331042849,-160.0,0.00014809,2]
[419710370,1775331042859,-150.0,0.00014811,2]
[419710371,1775331042868,-2000.0,0.00014816,2]
[419710372,1775331042877,-2000.0,0.00014816,2]
[419710373,1775331042887,-2000.0,0.00014816,2]
[419710374,1775331042896,-2000.0,0.00014816,2]
[419710375,1775331042905,-2000.0,0.00014816,2]
[419710376,1775331042914,-2000.0,0.00014816,2]
[419710377,1775331042923,-2000.0,0.00014816,2]
[419710378,1775331042933,-2000.0,0.00014816,2]
[419710379,1775331042943,-2000.0,0.00014816,2]
[419710380,1775331042953,-2018.0,0.00014816,2]
[419710381,1775331042962,-150.0,0.00014824,2]
[419710382,1775331042971,-150.0,0.00014824,2]
[419710383,1775331042980,-195.43350123,0.00014828,2]
[419710384,1775331042989,-150.0,0.00014836,2]
[419710385,1775331042999,-150.0,0.00014848,2]
[419710386,1775331043009,-500.0,0.00014857,2]
[419710387,1775331043018,-500.0,0.00014857,2]
[419710388,1775331043028,-150.0,0.00014857,2]
[419710389,1775331043037,-3749.2033976,0.00014858,2]
[419710390,1775331043047,-400095.0341856,0.00014858,2]
[419710391,1775331043056,-4811.9540607,0.00014858,2]
[419710392,1775331043066,-22082.4274482,0.00014858,2]
[419710393,1775331043075,-178.1065521,0.00014861,2]
[419710394,1775331043085,-500.0,0.00014863,2]
[419710395,1775331043094,-500.0,0.00014863,2]
[419710396,1775331043104,-500.0,0.00014863,2]
[419710397,1775331043114,-1406.4854137,0.00014864,2]
[419710398,1775331043123,-296138.0513926,0.00014864,2]
[419710399,1775331043133,-151.0,0.00014864,2]
[419710400,1775331043142,-151.0,0.00014864,2]
[419710401,1775331043152,-151.0,0.00014864,2]
[419710402,1775331043161,-1112.452147,0.00014864,2]
[419710403,1775331043171,-1112.452147,0.00014864,2]
[419710404,1775331043180,-1881.51906,0.00014864,2]
[419710405,1775331043190,-1112.452147,0.00014864,2]
[419710406,1775331043200,-1881.51906,0.00014864,2]
[419710407,1775331043210,-1881.51906,0.00014864,2]
[419710408,1775331043220,-1112.452147,0.00014864,2]
[419710409,1775331043229,-1881.51906,0.00014864,2]
[419710410,1775331043239,-150.0,0.00014867,2]
[419710411,1775331043249,-150.0,0.00014871,2]
[419710412,1775331043259,-150.0,0.00014871,2]
[419710413,1775331043269,-150.0,0.00014873,2]
[419710414,1775331043279,-1974.94062421,0.0001488,2]
[419710415,1775331043289,-154.78244338,0.00014884,2]
[419710416,1775331043299,-150.0,0.00014892,2]
[419710417,1775331043308,-150.0,0.00014903,2]
[419710418,1775331043319,-150.0,0.00014909,2]
[419710419,1775331043329,-150.0,0.00014912,2]
[419710420,1775331043339,-150.0,0.00014918,2]
[419710421,1775331043349,-150.0,0.00014918,2]
[419710422,1775331043359,-150.0,0.00014933,2]
[419710423,1775331043369,-150.0,0.00014933,2]
[419710424,1775331043379,-150.0,0.00014933,2]
[419710425,1775331043388,-150.0,0.00014945,2]
[419710426,1775331043399,-150.0,0.00014949,2]
[419710427,1775331043408,-3091.81003326,0.00014949,2]
[419710428,1775331043418,-213.71552747,0.00014955,2]
[419710429,1775331043428,-2500.0,0.00014964,2]
[419710430,1775331043438,-1504.34724751,0.00014964,2]
[419710431,1775331043448,-150.0,0.00014965,2]
[419710432,1775331043458,-150.0,0.00014965,2]
[419710433,1775331043467,-150.0,0.00014976,2]
[419710434,1775331043477,-150.0,0.00014982,2]
[419710435,1775331043486,-150.0,0.00014994,2]
[419710436,1775331043496,-150.0,0.00015,2]
[419710437,1775331043506,-202.28081904,0.00015004,2]
[419710438,1775331043517,-150.0,0.00015012,2]
[419710439,1775331043527,-150.0,0.00015012,2]
[419710440,1775331043536,-150.0,0.00015015,2]
[419710441,1775331043546,-500.0,0.00015016,2]
[419710442,1775331043556,-150.0,0.00015018,2]
[419710443,1775331043566,-500.0,0.00015029,2]
[419710444,1775331043576,-30000.0,0.0001503,2]
[419710445,1775331043586,-293.55988,0.0001503,2]
[419710446,1775331043596,-293.55988,0.0001503,2]
[419710447,1775331043606,-293.55988,0.0001503,2]
[419710448,1775331043616,-293.55988,0.0001503,2]
[419710449,1775331043626,-150.0,0.0001504,2]
[419710450,1775331043636,-150.0,0.0001504,2]
[419710451,1775331043646,-17026.57235128,0.0001505,2]
[419710452,1775331043655,-1503.04138262,0.00015053,2]
[419710453,1775331043666,-500.0,0.00015053,2]
[419710454,1775331043675,-1500.0,0.00015053,2]
[419710455,1775331043685,-1500.0,0.00015053,2]
[419710456,1775331043695,-452.97866013,0.00015053,2]
[419710457,1775331043705,-1500.0,0.00015053,2]
[419710458,1775331043714,-1581.45389944,0.00015053,2]
[419710459,1775331043724,-1500.0,0.00015053,2]
[419710460,1775331043733,-150.0,0.00015055,2]
[419710461,1775331043743,-384.49,0.00015056,2]
[419710462,1775331043752,-150.0,0.00015059,2]
[419710463,1775331043762,-150.0,0.00015059,2]
[419710464,1775331043772,-150.0,0.00015067,2]
[419710465,1775331043782,-150.0,0.00015067,2]
[419710466,1775331043792,-204.4,0.00015068,2]
[419710467,1775331043801,-3474.47,0.00015068,2]
[419710468,1775331043811,-800.0,0.00015068,2]
[419710469,1775331043820,-1005.31465094,0.00015071,2]
[419710470,1775331043830,-500.0,0.00015071,2]
[419710471,1775331043840,-1501.15172574,0.00015071,2]
[419710472,1775331043849,-150.0,0.00015086,2]
[419710473,1775331043859,-150.0,0.00015091,2]
[419710474,1775331043869,-150.0,0.00015104,2]
[419710475,1775331043878,-150.0,0.00015106,2]
[419710476,1775331043888,-150.0,0.00015106,2]
[419710477,1775331043898,-150.0,0.00015127,2]
[419710478,1775331043908,-150.0,0.00015131,2]
[419710479,1775331043918,-150.0,0.00015133,2]
[419710480,1775331043927,-150.0,0.00015138,2]
[419710481,1775331043938,-375.77917139,0.0001514,2]
[419710482,1775331043947,-150.0,0.00015153,2]
[419710483,1775331043958,-150.0,0.00015153,2]
[419710484,1775331043968,-10523.99379801,0.0001516,2]
[419710485,1775331043978,-150.0,0.00015164,2]
[419710486,1775331043988,-150.0,0.00015168,2]
[419710487,1775331043999,-5061.29326262,0.00015174,2]
[419710488,1775331044008,-150.0,0.00015177,2]
[419710489,1775331044017,-666.0,0.00015198,2]
[419710490,1775331044027,-310.4251096,0.00015199,2]
[419710491,1775331044036,-1428.38747117,0.00015199,2]
[419710492,1775331044045,-500.0,0.00015199,2]
[419710493,1775331044056,-9552.16786547,0.00015199,2]
[419710494,1775331044065,-200.0,0.00015199,2]
[419710495,1775331044077,-500.0,0.00015199,2]
[419710496,1775331044087,-500.0,0.00015199,2]
[419710497,1775331044099,-344.69331008,0.00015199,2]
[419710498,1775331044110,-500.0,0.00015199,2]
[419710499,1775331044121,-500.0,0.00015199,2]
[419710500,1775331044131,-500.0,0.00015199,2]
[419710501,1775331044140,-500.0,0.00015199,2]
[419710502,1775331044150,-250.0,0.00015199,2]
[419710503,1775331044160,-500.0,0.00015199,2]
[419710504,1775331044169,-250.0,0.00015199,2]
[419710505,1775331044178,-500.0,0.00015199,2]
[419710506,1775331044187,-250.0,0.00015199,2]
[419710507,1775331044196,-500.0,0.00015199,2]
[419710508,1775331044205,-250.0,0.00015199,2]
[419710509,1775331044214,-500.0,0.00015199,2]
[419710510,1775331044224,-250.0,0.00015199,2]
[419710511,1775331044233,-500.0,0.00015199,2]
[419710512,1775331044242,-250.0,0.00015199,2]
[419710513,1775331044252,-250.0,0.00015199,2]
[419710514,1775331044261,-250.0,0.00015199,2]
[419710515,1775331044270,-250.0,0.00015199,2]
[419710516,1775331044279,-250.0,0.00015199,2]
[419710517,1775331044288,-250.0,0.00015199,2]
[419710518,1775331044297,-151.0,0.00015199,2]
[419710519,1775331044306,-743.50770149,0.00015199,2]
[419710520,1775331044315,-174.61919141,0.00015199,2]
[419710521,1775331044324,-200.0,0.00015199,2]
[419710522,1775331044334,-500.0,0.00015199,2]
[419710523,1775331044421,-500.0,0.00015199,2]
[419710524,1775331044430,-500.0,0.00015199,2]
[419710525,1775331044439,-500.0,0.00015199,2]
[419710526,1775331044448,-500.0,0.00015199,2]
[419710527,1775331044457,-599.60298507,0.00015199,2]
[419710528,1775331044466,-500.0,0.00015199,2]
[419710529,1775331044475,-500.0,0.00015199,2]
[419710530,1775331044484,-500.0,0.00015199,2]
[419710531,1775331044493,-500.0,0.00015199,2]
[419710532,1775331044502,-500.0,0.00015199,2]
[419710533,1775331044511,-500.0,0.00015199,2]
[419710534,1775331044520,-279.9045709,0.00015199,2]
[419710535,1775331044529,-170.0,0.00015199,2]
[419710536,1775331044538,-170.0,0.00015199,2]
[419710537,1775331044548,-170.0,0.00015199,2]
[419710538,1775331044557,-170.0,0.00015199,2]
[419710539,1775331044566,-170.0,0.00015199,2]
[419710540,1775331044575,-170.0,0.00015199,2]
[419710541,1775331044585,-170.0,0.00015199,2]
[419710542,1775331044594,-170.0,0.00015199,2]
[419710543,1775331044604,-170.0,0.00015199,2]
[419710544,1775331044613,-170.0,0.00015199,2]
[419710545,1775331044622,-170.0,0.00015199,2]
[419710546,1775331044631,-150.0,0.000152,2]
[419710547,1775331044640,-150.0,0.000152,2]
[419710548,1775331044650,-150.0,0.000152,2]
[419710549,1775331044659,-150.0,0.000152,2]
[419710550,1775331044668,-150.0,0.000152,2]
[419710551,1775331044677,-150.0,0.000152,2]
[419710552,1775331044687,-150.0,0.000152,2]
[419710553,1775331044696,-10000.0,0.00015205,2]
[419710554,1775331044705,-150.0,0.00015223,2]
[419710555,1775331044714,-150.0,0.00015232,2]
[419710556,1775331044723,-150.0,0.00015236,2]
[419710557,1775331044732,-150.0,0.00015247,2]
[419710558,1775331044741,-150.0,0.00015247,2]
[419710559,1775331044751,-9905.5980765,0.00015254,2]
[419710560,1775331044760,-500.0,0.00015254,2]
[419710561,1775331044769,-151.0,0.00015254,2]
[419710562,1775331044778,-150.0,0.00015262,2]
[419710563,1775331044787,-150.0,0.00015267,2]
[419710564,1775331044797,-150.0,0.00015269,2]
[419710565,1775331044806,-150.0,0.00015273,2]
[419710566,1775331044816,-150.0,0.00015294,2]
[419710567,1775331044825,-150.0,0.00015294,2]
[419710568,1775331044835,-150.0,0.00015296,2]
[419710569,1775331044844,-1115.0,0.00015296,2]
[419710570,1775331044853,-563.32898353,0.00015301,2]
[419710571,1775331044863,-10272.10520533,0.00015309,2]
[419710572,1775331044872,-500.0,0.00015309,2]
[419710573,1775331044882,-151.0,0.00015309,2]
[419710574,1775331044891,-150.0,0.00015309,2]
[419710575,1775331044900,-7351.94,0.0001531,2]
[419710576,1775331044909,-4822.17,0.0001531,2]
[419710577,1775331044918,-150.0,0.00015314,2]
[419710578,1775331044927,-150.0,0.00015333,2]
[419710579,1775331044938,-150.0,0.00015333,2]
[419710580,1775331044948,-150.0,0.00015341,2]
[419710581,1775331044958,-150.0,0.00015341,2]
[419710582,1775331044967,-150.0,0.00015345,2]
[419710583,1775331044977,-150.0,0.0001536,2]
[419710584,1775331044986,-150.0,0.0001536,2]
[419710585,1775331044996,-10652.17309792,0.00015364,2]
[419710586,1775331045006,-500.0,0.00015364,2]
[419710587,1775331045017,-151.0,0.00015364,2]
[419710588,1775331045026,-785.54,0.00015367,2]
[419710589,1775331045036,-150.0,0.00015382,2]
[419710590,1775331045046,-150.0,0.00015385,2]
[419710591,1775331045056,-150.0,0.00015388,2]
[419710592,1775331045066,-150.0,0.00015388,2]
[419710593,1775331045076,-213.61,0.00015395,2]
[419710594,1775331045085,-150.0,0.000154,2]
[419710595,1775331045094,-2000.0,0.000154,2]
[419710596,1775331045104,-2000.0,0.00015401,2]
[419710597,1775331045113,-150.0,0.00015406,2]
[419710598,1775331045123,-500.0,0.00015418,2]
[419710599,1775331045132,-433.75,0.00015418,2]
[419710600,1775331045141,-150.0,0.00015418,2]
[419710601,1775331045152,-11046.30350255,0.00015419,2]
[419710602,1775331045162,-500.0,0.00015419,2]
[419710603,1775331045171,-151.0,0.00015419,2]
[419710604,1775331045180,-150.0,0.00015424,2]
[419710605,1775331045189,-3091.81003326,0.00015425,2]
[419710606,1775331045198,-213.61,0.00015431,2]
[419710607,1775331045208,-150.0,0.00015435,2]
[419710608,1775331045217,-150.0,0.00015435,2]
[419710609,1775331045226,-150.0,0.00015451,2]
[419710610,1775331045236,-150.0,0.00015455,2]
[419710611,1775331045245,-213.60371154,0.00015466,2]
[419710612,1775331045254,-150.0,0.00015467,2]
[419710613,1775331045263,-150.0,0.00015467,2]
[419710614,1775331045273,-150.0,0.00015467,2]
[419710615,1775331045283,-11455.01673214,0.00015474,2]
[419710616,1775331045292,-500.0,0.00015474,2]
[419710617,1775331045302,-151.0,0.00015474,2]
[419710618,1775331045310,-17026.57235128,0.00015475,2]
[419710619,1775331045319,-150.0,0.00015482,2]
[419710620,1775331045328,-150.0,0.00015482,2]
[419710621,1775331045338,-150.0,0.00015488,2]
[419710622,1775331045347,-150.0,0.00015491,2]
[419710623,1775331045356,-150.0,0.00015497,2]
[419710624,1775331045365,-501.0,0.000155,4]
[419710625,1775331045374,-2000.0,0.00015501,2]
[419710626,1775331045383,-150.0,0.00015508,2]
[419710627,1775331045392,-1003.62269392,0.00015512,2]
[419710628,1775331045401,-150.0,0.00015527,2]
[419710629,1775331045411,-11878.85235123,0.00015529,2]
[419710630,1775331045419,-500.0,0.00015529,2]
[419710631,1775331045429,-151.0,0.00015529,2]
[419710632,1775331045439,-150.0,0.00015529,2]
[419710633,1775331045448,-150.0,0.00015529,2]
[419710634,1775331045457,-10523.99379801,0.0001553,2]
[419710635,1775331045466,-150.0,0.00015533,2]
[419710636,1775331045475,-500.0,0.00015541,2]
[419710637,1775331045484,-500.0,0.00015541,2]
[419710638,1775331045494,-500.0,0.00015541,2]
[419710639,1775331045503,-500.0,0.00015541,2]
[419710640,1775331045512,-500.0,0.00015541,2]
[419710641,1775331045521,-500.0,0.00015541,2]
[419710642,1775331045530,-500.0,0.00015541,2]
[419710643,1775331045539,-500.0,0.00015541,2]
[419710644,1775331045548,-500.0,0.00015541,2]
[419710645,1775331045557,-500.0,0.00015541,2]
[419710646,1775331045567,-500.0,0.00015541,2]
[419710647,1775331045575,-500.0,0.00015541,2]
[419710648,1775331045584,-500.0,0.00015541,2]
[419710649,1775331045594,-500.0,0.00015541,2]
[419710650,1775331045603,-500.0,0.00015541,2]
[419710651,1775331045612,-500.0,0.00015541,2]
[419710652,1775331045621,-500.0,0.00015541,2]
[419710653,1775331045631,-500.0,0.00015541,2]
[419710654,1775331045640,-500.0,0.00015541,2]
[419710655,1775331045650,-500.0,0.00015541,2]
[419710656,1775331045659,-500.0,0.00015541,2]
[419710657,1775331045668,-500.0,0.00015541,2]
[419710658,1775331045678,-500.0,0.00015541,2]
[419710659,1775331045687,-500.0,0.00015541,2]
[419710660,1775331045696,-500.0,0.00015541,2]
[419710661,1775331045705,-500.0,0.00015541,2]
[419710662,1775331045714,-500.0,0.00015541,2]
[419710663,1775331045723,-500.0,0.00015541,2]
[419710664,1775331045732,-500.0,0.00015541,2]
[419710665,1775331045742,-500.0,0.00015541,2]
[419710666,1775331045751,-500.0,0.00015541,2]
[419710667,1775331045760,-242.62789815,0.00015541,2]
[419710668,1775331045769,-150.0,0.00015543,2]
[419710669,1775331045778,-150.0,0.00015552,2]
[419710670,1775331045788,-150.0,0.00015564,2]
[419710671,1775331045798,-150.0,0.00015576,2]
[419710672,1775331045807,-150.0,0.00015576,2]
[419710673,1775331045817,-2700.68543488,0.00015584,2]
[419710674,1775331045826,-500.0,0.00015584,2]
[419710675,1775331045836,-151.0,0.00015584,2]
[419710676,1775331045845,-150.0,0.00015589,2]
[419710677,1775331045854,-150.0,0.000156,2]
[419710678,1775331045863,-150.0,0.000156,2]
[419710679,1775331045873,-150.0,0.000156,2]
[419710680,1775331045882,-374.28257311,0.00015601,2]
[419710681,1775331045891,-2000.0,0.00015601,2]
[419710682,1775331045900,-2000.0,0.00015601,2]
[419710683,1775331045910,-1504.16690782,0.00015601,2]
[419710684,1775331045919,-2000.0,0.00015601,2]
[419710685,1775331045929,-150.0,0.00015616,2]
[419710686,1775331045938,-150.0,0.00015624,2]
[419710687,1775331045947,-150.0,0.00015624,2]
[419710688,1775331045956,-150.0,0.00015631,2]
[419710689,1775331045965,-150.0,0.00015634,2]
[419710690,1775331045975,-150.0,0.00015636,2]
[419710691,1775331045984,-500.0,0.00015639,2]
[419710692,1775331045993,-151.0,0.00015639,2]
[419710693,1775331046002,-785.54,0.00015641,2]
[419710694,1775331046011,-5888.0,0.00015649,2]
[419710695,1775331046020,-166.66,0.00015658,2]
[419710696,1775331046029,-150.0,0.00015667,2]
[419710697,1775331046039,-150.0,0.00015671,2]
[419710698,1775331046048,-150.0,0.00015671,2]
[419710699,1775331046057,-150.0,0.00015673,2]
[419710700,1775331046067,-266.36,0.00015678,2]
[419710701,1775331046076,-3404.4923786,0.0001568,2]
[419710702,1775331046086,-150.0,0.0001568,2]
[419710703,1775331046095,-150.0,0.0001568,2]
[419710704,1775331046105,-500.0,0.00015694,2]
[419710705,1775331046114,-151.0,0.00015694,2]
[419710706,1775331046123,-2000.0,0.00015701,2]
[419710707,1775331046133,-736.0,0.00015708,2]
[419710708,1775331046142,-150.0,0.00015709,2]
[419710709,1775331046151,-150.0,0.00015718,2]